bitfinex/quotes_BTCUSD_20250105
["timestamp","ask_amount","ask_price","bid_price","bid_amount"]
[1736040486772,0.2949087,98298.0,98297.0,0.0011708]
[1736040487006,0.2949087,98298.0,98297.0,0.0021708]
[1736040487838,0.2949087,98298.0,98297.0,0.0001708]
[1736040488018,0.2969087,98298.0,98297.0,0.0001708]
[1736040488639,0.2949087,98298.0,98297.0,0.0001708]
[1736040488838,0.2969087,98298.0,98297.0,0.0001708]
[1736040489260,0.34263205,98298.0,98297.0,0.0001708]
[1736040489455,0.34063205,98298.0,98297.0,0.0001708]
[1736040489824,0.34463205,98298.0,98297.0,0.0001708]
[1736040490026,0.34063205,98298.0,98297.0,0.0001708]
[1736040490587,0.21873261,98298.0,98297.0,0.0001708]
[1736040490797,0.22561261,98298.0,98297.0,0.0001708]
[1736040491362,0.22761261,98298.0,98297.0,0.0001708]
[1736040495002,0.22561261,98298.0,98297.0,0.0001708]
[1736040495270,0.22761261,98298.0,98297.0,0.0001708]
[1736040495949,0.22261261,98298.0,98297.0,0.0001708]
[1736040496500,0.22861261,98298.0,98297.0,0.0001708]
[1736040497074,0.22261261,98298.0,98297.0,0.0001708]
[1736040497282,0.22861261,98298.0,98297.0,0.0001708]
[1736040497511,0.22661261,98298.0,98297.0,0.0001708]
[1736040497714,0.22861261,98298.0,98297.0,0.0001708]
[1736040497930,0.22261261,98298.0,98297.0,0.0001708]
[1736040498100,0.22061261,98298.0,98297.0,0.0001708]
[1736040498526,0.22261261,98298.0,98297.0,0.0001708]
[1736040499199,0.22061261,98298.0,98297.0,0.0001708]
[1736040499406,0.22661261,98298.0,98297.0,0.0001708]
[1736040499602,0.22061261,98298.0,98297.0,0.0001708]
[1736040499804,0.31200691,98298.0,98297.0,0.0001708]
[1736040500010,0.31800691,98298.0,98297.0,0.0001708]
[1736040500614,0.32000691,98298.0,98297.0,0.0001708]
[1736040501265,0.22261261,98298.0,98297.0,0.0001708]
[1736040502232,0.22061261,98298.0,98297.0,0.0001708]
[1736040502430,0.22261261,98298.0,98297.0,0.0001708]
[1736040502605,0.22861261,98298.0,98297.0,0.0001708]
[1736040503187,0.22261261,98298.0,98297.0,0.0001708]
[1736040503741,0.22761261,98298.0,98297.0,0.0001708]
[1736040504140,0.22061261,98298.0,98297.0,0.0001708]
[1736040504581,0.22261261,98298.0,98297.0,0.0001708]
[1736040504989,0.22561261,98298.0,98297.0,0.0001708]
[1736040505195,0.22761261,98298.0,98297.0,0.0001708]
[1736040505804,0.22561261,98298.0,98297.0,0.0001708]
[1736040506273,0.22061261,98298.0,98297.0,0.0001708]
[1736040507095,0.22761261,98298.0,98297.0,0.0001708]
[1736040507473,0.22261261,98298.0,98297.0,0.0001708]
[1736040507767,0.22761261,98298.0,98297.0,0.0001708]
[1736040508007,0.22561261,98298.0,98297.0,0.0001708]
[1736040508179,0.22761261,98298.0,98297.0,0.0001708]
[1736040508752,0.22561261,98298.0,98297.0,0.0001708]
[1736040509319,0.23061261,98298.0,98297.0,0.0001708]
[1736040509727,0.22561261,98298.0,98297.0,0.0001708]
[1736040509908,0.23061261,98298.0,98297.0,0.0001708]
[1736040510110,0.22761261,98298.0,98297.0,0.0001708]
[1736040510531,0.23261261,98298.0,98297.0,0.0001708]
[1736040510737,0.23061261,98298.0,98297.0,0.0001708]
[1736040511546,0.23261261,98298.0,98297.0,0.0001708]
[1736040514711,0.26438803,98298.0,98297.0,0.0001708]
[1736040515113,0.2643878,98298.0,98297.0,0.0001708]
[1736040515290,0.23261261,98298.0,98297.0,0.0001708]
[1736040515673,0.32395964,98298.0,98297.0,0.0001708]
[1736040516861,0.35573837,98298.0,98297.0,0.0001708]
[1736040517409,0.32395964,98298.0,98297.0,0.0001708]
[1736040518052,0.35574189,98298.0,98297.0,0.0001708]
[1736040518256,0.26439486,98298.0,98297.0,0.0001708]
[1736040520583,0.40156491,98298.0,98297.0,0.0001708]
[1736040522207,0.57211402,98298.0,98297.0,0.0001708]
[1736040522966,0.54033177,98298.0,98297.0,0.0001708]
[1736040523175,0.75503721,98298.0,98297.0,0.0001708]
[1736040523556,0.72325002,98298.0,98297.0,0.0001708]
[1736040523755,0.75503735,98298.0,98297.0,0.0001708]
[1736040523981,0.72325002,98298.0,98297.0,0.0001708]
[1736040524940,0.54033177,98298.0,98297.0,0.0001708]
[1736040527136,0.72333864,98298.0,98297.0,0.0001708]
[1736040528740,0.54033177,98298.0,98297.0,0.0001708]
[1736040530327,0.57212005,98298.0,98297.0,0.0001708]
[1736040530506,0.54033177,98298.0,98297.0,0.0001708]
[1736040532521,0.69033177,98298.0,98297.0,0.0001708]
[1736040533126,0.7221185,98298.0,98297.0,0.0001708]
[1736040533484,0.69033177,98298.0,98297.0,0.0001708]
[1736040533891,0.72211869,98298.0,98297.0,0.0001708]
[1736040534185,0.69033177,98298.0,98297.0,0.0001708]
[1736040534392,0.72211879,98298.0,98297.0,0.0001708]
[1736040534716,0.69033177,98298.0,98297.0,0.0001708]
[1736040534897,0.72211862,98298.0,98297.0,0.0001708]
[1736040535499,0.72211764,98298.0,98297.0,0.0001708]
[1736040548391,0.69033177,98298.0,98297.0,0.0001708]
[1736040549545,0.72211446,98298.0,98297.0,0.0001708]
[1736040553125,0.69033177,98298.0,98297.0,0.0001708]
[1736040553340,0.72211096,98298.0,98297.0,0.0001708]
[1736040553519,0.69033177,98298.0,98297.0,0.0001708]
[1736040554882,0.72211081,98298.0,98297.0,0.0001708]
[1736040587295,0.72211081,98298.0,98269.0,0.0001708]
[1736040587296,0.72211081,98298.0,96990.0,0.00013893]
[1736040587509,0.72211081,98298.0,98255.0,0.10398632]
[1736040587510,0.203508,98276.0,98255.0,0.10398632]
[1736040587682,0.203508,98276.0,98269.0,0.09162323]
[1736040587986,0.203598,98276.0,98261.0,0.43259608]
[1736040588210,0.203598,98276.0,98270.0,0.01410366]
[1736040588211,0.07823581,98271.0,98270.0,0.01410366]
[1736040588423,0.00762877,98275.0,98262.0,0.10398632]
[1736040588641,0.203512,98274.0,98262.0,0.10398632]
[1736040588815,0.07823581,98272.0,98263.0,0.01410391]
[1736040589104,0.07823581,98272.0,98264.0,0.10398632]
[1736040589424,0.07823581,98272.0,98265.0,0.01410622]
[1736040589796,0.30837575,98266.0,98265.0,0.01460094]
[1736040590194,0.30837575,98266.0,98265.0,0.00049472]
[1736040590400,0.81094721,98266.0,98265.0,0.12959472]
[1736040591323,0.81094721,98266.0,98264.0,0.09066238]
[1736040591613,0.81103721,98266.0,98264.0,0.09081071]
[1736040591766,0.81103721,98266.0,98265.0,0.002]
[1736040591982,0.81203721,98266.0,98265.0,0.004]
[1736040592181,0.00109,98266.0,98265.0,0.004]
[1736040592762,9e-05,98266.0,98265.0,0.002]
[1736040592964,0.8109678,98266.0,98265.0,0.002]
[1736040593213,0.8109678,98266.0,98264.0,0.09281071]
[1736040593386,0.8109678,98266.0,98264.0,0.09181071]
[1736040593809,0.8109678,98266.0,98253.0,0.01033846]
[1736040593810,0.8109678,98266.0,98238.0,0.173]
[1736040594008,0.5435,98265.0,98253.0,0.00014823]
[1736040594335,1.3543778,98265.0,98263.0,0.000171]
[1736040594547,1.3544678,98265.0,98263.0,0.000171]
[1736040594752,0.8108778,98264.0,98263.0,0.000171]
[1736040595953,0.8108778,98264.0,98263.0,0.002171]
[1736040596723,0.8108778,98264.0,98263.0,0.001171]
[1736040598424,1.48648291,98264.0,98263.0,0.000171]
[1736040598631,1.48648291,98264.0,98263.0,0.001171]
[1736040599963,1.48648291,98264.0,98248.0,0.02052883]
[1736040600107,1.48657291,98264.0,98244.0,4.937e-05]
[1736040600339,0.8109678,98264.0,98244.0,4.937e-05]
[1736040600749,0.07950618,98260.0,98244.0,4.937e-05]
[1736040600955,0.07950618,98254.0,98244.0,4.937e-05]
[1736040601354,0.38834889,98254.0,98244.0,4.937e-05]
[1736040601959,0.30884271,98252.0,98244.0,4.937e-05]
[1736040603000,0.30884271,98252.0,98244.0,0.00104937]
[1736040603323,0.8108778,98251.0,98244.0,0.00104937]
[1736040603547,0.8108778,98251.0,98244.0,4.937e-05]
[1736040603954,0.8108778,98251.0,98244.0,0.00204937]
[1736040604364,0.8108778,98251.0,98244.0,0.01030204]
[1736040604568,0.30884271,98249.0,98244.0,0.00104937]
[1736040605687,0.30884271,98249.0,98241.0,0.02064289]
[1736040605893,0.50707335,98236.0,98235.0,0.203593]
[1736040606453,0.50707335,98236.0,98235.0,0.45856554]
[1736040606930,0.8449391,98236.0,98235.0,0.45856554]
[1736040607783,0.8449391,98236.0,98235.0,0.60856554]
[1736040608012,0.8449391,98236.0,98235.0,0.61156554]
[1736040608809,0.8459391,98236.0,98235.0,0.61156554]
[1736040609010,0.8459391,98236.0,98235.0,0.61844554]
[1736040609990,0.8459391,98236.0,98235.0,0.64961753]
[1736040611721,0.8459391,98236.0,98235.0,0.64273753]
[1736040611926,0.8459391,98236.0,98235.0,0.64961753]
[1736040612500,0.8449391,98236.0,98235.0,0.64661753]
[1736040612841,0.8449391,98236.0,98235.0,0.64961753]
[1736040613082,0.8459391,98236.0,98235.0,0.64961753]
[1736040613274,0.8449391,98236.0,98235.0,0.64961753]
[1736040613478,0.8449391,98236.0,98235.0,0.64661753]
[1736040613680,0.8449391,98236.0,98235.0,0.64861753]
[1736040614624,0.8459391,98236.0,98235.0,0.64861753]
[1736040615271,0.8459391,98236.0,98235.0,0.61744554]
[1736040615487,0.8459391,98236.0,98235.0,1.1486204]
[1736040616548,1.31875605,98236.0,98235.0,1.1486204]
[1736040617716,1.31875605,98236.0,98235.0,1.16039064]
[1736040618666,1.31875605,98236.0,98235.0,1.15839064]
[1736040618867,1.12028944,98236.0,98235.0,1.16139064]
[1736040619511,1.12028944,98236.0,98235.0,1.15839064]
[1736040619719,1.12028944,98236.0,98235.0,1.16039064]
[1736040622163,0.8459391,98236.0,98235.0,1.16039064]
[1736040623351,0.8459391,98236.0,98235.0,1.15839064]
[1736040623973,0.8449391,98236.0,98235.0,1.15839064]
[1736040624321,0.8459391,98236.0,98235.0,1.15839064]
[1736040625101,0.8469391,98236.0,98235.0,1.15839064]
[1736040625266,0.8469391,98236.0,98235.0,1.16139064]
[1736040625469,0.8449391,98236.0,98235.0,1.16139064]
[1736040625691,0.8449391,98236.0,98235.0,1.15839064]
[1736040625898,0.8459391,98236.0,98235.0,1.15839064]
[1736040626091,0.8459391,98236.0,98235.0,1.16139064]
[1736040626494,0.8459391,98236.0,98235.0,1.15839064]
[1736040626939,0.8449391,98236.0,98235.0,1.16139064]
[1736040627312,0.8459391,98236.0,98235.0,1.16139064]
[1736040627527,0.8449391,98236.0,98235.0,1.16139064]
[1736040628367,0.8449391,98236.0,98235.0,1.15839064]
[1736040628543,0.8459391,98236.0,98235.0,1.15839064]
[1736040628719,0.8459391,98236.0,98235.0,1.16139064]
[1736040629474,0.8459391,98236.0,98235.0,0.95779764]
[1736040629648,0.8459391,98236.0,98235.0,0.95796844]
[1736040633198,1.0745903,98236.0,98235.0,0.95796844]
[1736040634602,1.0745903,98236.0,98235.0,0.95108844]
[1736040634818,1.0745903,98236.0,98235.0,0.95796844]
[1736040640600,1.0745903,98236.0,98235.0,0.95496844]
[1736040640963,1.0745903,98236.0,98235.0,0.95696844]
[1736040641366,0.8459391,98236.0,98235.0,0.95496844]
[1736040641766,0.8459391,98236.0,98235.0,0.95796844]
[1736040647697,0.8459391,98236.0,98235.0,0.95108844]
[1736040647893,0.8459391,98236.0,98235.0,0.95796844]
[1736040649066,0.8508991,98236.0,98235.0,0.95796844]
[1736040650872,0.8508991,98236.0,98235.0,0.11185401]
[1736040650873,0.47352575,98236.0,98235.0,0.11185401]
[1736040651091,0.47352575,98236.0,98235.0,0.10008377]
[1736040651639,0.47352575,98236.0,98235.0,0.09708377]
[1736040651836,0.47252575,98236.0,98235.0,0.09708377]
[1736040652038,0.47652575,98236.0,98235.0,0.50017077]
[1736040652244,0.47652575,98236.0,98235.0,0.53322356]
[1736040652485,0.47252575,98236.0,98235.0,0.53322356]
[1736040653048,0.47252575,98236.0,98235.0,0.53522356]
[1736040653502,0.47252575,98236.0,98235.0,0.53322356]
[1736040653909,0.47452575,98236.0,98235.0,0.53322356]
[1736040654118,0.47452575,98236.0,98235.0,0.40512356]
[1736040654325,0.47652575,98236.0,98235.0,0.40512356]
[1736040654632,0.49266997,98236.0,98235.0,0.40512356]
[1736040654854,0.50166997,98236.0,98235.0,0.40512356]
[1736040655055,0.49466997,98236.0,98235.0,0.40512356]
[1736040655271,0.49466997,98236.0,98235.0,0.53322336]
[1736040655459,0.49766997,98236.0,98235.0,0.53322336]
[1736040656141,0.49566997,98236.0,98235.0,0.53322336]
[1736040656546,0.49766997,98236.0,98235.0,0.53322336]
[1736040659833,0.0788,98235.0,98219.0,0.00253097]
[1736040660037,0.0788,98235.0,98213.0,0.020132]
[1736040660038,0.6223,98234.0,98213.0,0.020132]
[1736040660193,0.0788,98233.0,98214.0,0.10398632]
[1736040661402,0.09114891,98224.0,98214.0,0.10398632]
[1736040661560,0.0788,98223.0,98214.0,0.10398632]
[1736040663690,0.0495,98222.0,98214.0,0.10398632]
[1736040663892,0.14064891,98222.0,98214.0,0.10398632]
[1736040664072,0.14064891,98222.0,98214.0,0.10498632]
[1736040664633,0.14064891,98222.0,98214.0,0.10398632]
[1736040664809,0.0495,98222.0,98214.0,0.10398632]
[1736040665019,0.0495,98222.0,98214.0,0.10498632]
[1736040665845,0.5435,98221.0,98214.0,0.10498632]
[1736040666639,0.5435,98221.0,98214.0,0.10398632]
[1736040667040,0.5435,98221.0,98214.0,0.10515732]
[1736040667409,0.0788,98220.0,98214.0,0.10515732]
[1736040669240,0.0788,98220.0,98214.0,0.10415732]
[1736040669441,0.0788,98220.0,98214.0,0.10515732]
[1736040670322,0.0788,98220.0,98214.0,0.001171]
[1736040670843,0.09114891,98218.0,98214.0,0.001171]
[1736040671079,0.0788,98217.0,98214.0,0.001171]
[1736040671251,0.13672337,98216.0,98214.0,0.001171]
[1736040672077,0.13687136,98216.0,98214.0,0.001171]
[1736040672204,0.09118198,98216.0,98214.0,0.000171]
[1736040672720,0.09118198,98216.0,98214.0,0.002171]
[1736040672924,0.09218198,98216.0,98214.0,0.002171]
[1736040673081,0.00114799,98216.0,98214.0,0.000171]
[1736040673484,0.00114799,98216.0,98214.0,0.002171]
[1736040674790,0.5435,98215.0,98214.0,0.002171]
[1736040675558,0.5435,98215.0,98214.0,0.000171]
[1736040675995,0.5445,98215.0,98214.0,0.002171]
[1736040679999,0.5445,98215.0,98214.0,0.000171]
[1736040680342,0.5435,98215.0,98214.0,0.001171]
[1736040681374,0.5445,98215.0,98214.0,0.001171]
[1736040681577,0.6702,98215.0,98214.0,0.000171]
[1736040681957,0.6702,98215.0,98214.0,0.002171]
[1736040682330,0.6702,98215.0,98214.0,0.000171]
[1736040683335,0.69039901,98215.0,98214.0,0.000171]
[1736040683965,0.780433,98215.0,98214.0,0.000171]
[1736040685528,0.781433,98215.0,98214.0,0.000171]
[1736040685726,0.69039901,98215.0,98214.0,0.000171]
[1736040686549,0.68939901,98215.0,98214.0,0.000171]
[1736040686919,0.781433,98215.0,98214.0,0.000171]
[1736040687595,0.69039901,98215.0,98214.0,0.000171]
[1736040688162,1.02656206,98215.0,98214.0,0.000171]
[1736040688366,1.02556206,98215.0,98214.0,0.000171]
[1736040689769,0.075,98211.0,98201.0,0.01277039]
[1736040689944,0.07950618,98210.0,98198.0,0.0001708]
[1736040690156,0.075,98209.0,98198.0,0.0001708]
[1736040690885,0.09109799,98205.0,98199.0,0.10398632]
[1736040691316,0.09109799,98205.0,98200.0,0.02910097]
[1736040691514,0.09109799,98208.0,98200.0,0.13308729]
[1736040691754,0.09109799,98208.0,98200.0,0.10398632]
[1736040692147,0.09109799,98208.0,98201.0,0.02910087]
[1736040692300,0.09109799,98208.0,98200.0,0.10398632]
[1736040692486,0.09109799,98208.0,98201.0,0.02911375]
[1736040692691,0.09109799,98208.0,98200.0,0.10398632]
[1736040692893,0.09109799,98208.0,98201.0,0.02911375]
[1736040693156,0.09109799,98207.0,98200.0,0.10398632]
[1736040693580,0.09109799,98207.0,98201.0,0.02911375]
[1736040693987,0.09109799,98207.0,98200.0,0.10398632]
[1736040694295,0.09109799,98207.0,98201.0,0.02911375]
[1736040694500,0.09109799,98206.0,98200.0,0.10398632]
[1736040694703,0.09109799,98206.0,98201.0,0.02911375]
[1736040694980,0.09109799,98206.0,98200.0,0.10498632]
[1736040695388,0.09109799,98204.0,98200.0,0.10398632]
[1736040695595,0.543329,98203.0,98200.0,0.10498632]
[1736040695745,0.543329,98203.0,98201.0,0.02911365]
[1736040695949,0.09109799,98201.0,98200.0,0.13844564]
[1736040696148,0.09109799,98201.0,98200.0,0.11760339]
[1736040696499,0.09109799,98201.0,98200.0,0.11660339]
[1736040696705,0.09099799,98201.0,98200.0,0.11860339]
[1736040697225,0.13664699,98201.0,98200.0,0.11860339]
[1736040697422,0.21164699,98201.0,98200.0,0.11860339]
[1736040697824,0.21164699,98201.0,98200.0,0.11660339]
[1736040698033,0.076,98201.0,98200.0,0.11660339]
[1736040698251,0.076,98201.0,98200.0,0.11860339]
[1736040698383,0.076,98201.0,98200.0,0.10598632]
[1736040699196,0.41314951,98201.0,98200.0,0.002]
[1736040699399,0.46134951,98201.0,98200.0,0.002]
[1736040700794,0.46034951,98201.0,98200.0,0.002]
[1736040701016,0.688228,98201.0,98198.0,0.0001708]
[1736040701237,0.689228,98201.0,98200.0,0.002]
[1736040701709,1.233557,98201.0,98200.0,0.002]
[1736040701922,1.233557,98201.0,98198.0,0.0001708]
[1736040701923,0.33714951,98200.0,98198.0,0.0001708]
[1736040702303,0.33714951,98200.0,98199.0,0.000171]
[1736040702939,0.25972111,98200.0,98199.0,0.000171]
[1736040703547,0.41415973,98200.0,98199.0,0.000171]
[1736040704326,1.18536722,98200.0,98199.0,0.000171]
[1736040705059,1.18636722,98200.0,98199.0,0.000171]
[1736040705458,0.95848873,98200.0,98199.0,0.000171]
[1736040706290,1.18636722,98200.0,98199.0,0.000171]
[1736040707710,0.95848873,98200.0,98199.0,0.000171]
[1736040710402,1.18664507,98200.0,98199.0,0.000171]
[1736040711285,0.95848873,98200.0,98199.0,0.000171]
[1736040713593,0.5429872,98196.0,98188.0,0.01302492]
[1736040714048,0.0771,98194.0,98186.0,0.00050923]
[1736040714533,0.09125504,98189.0,98186.0,0.00050923]
[1736040714781,0.09125504,98189.0,98186.0,0.01649037]
[1736040715023,0.09125504,98190.0,98188.0,0.001]
[1736040715497,0.09125504,98190.0,98186.0,0.00068023]
[1736040716240,0.09125504,98189.0,98186.0,0.00068023]
[1736040716718,0.09225504,98189.0,98186.0,0.00068023]
[1736040717001,0.09125504,98189.0,98186.0,0.00268023]
[1736040717252,0.5429872,98188.0,98186.0,0.00268023]
[1736040717453,0.0771,98187.0,98186.0,0.00068023]
[1736040717692,0.0771,98187.0,98186.0,0.00168023]
[1736040718297,0.0771,98187.0,98186.0,0.02059213]
[1736040718431,0.0771,98187.0,98186.0,0.02159213]
[1736040718635,0.21398256,98187.0,98186.0,0.02159213]
[1736040719875,0.21398256,98187.0,98186.0,0.02059213]
[1736040720285,0.21398256,98187.0,98186.0,0.02159213]
[1736040720948,0.21398256,98187.0,98186.0,0.02059213]
[1736040721260,0.21398256,98187.0,98186.0,0.00068023]
[1736040721486,0.41386317,98187.0,98186.0,0.00068023]
[1736040721692,0.41386317,98187.0,98186.0,0.00168023]
[1736040722188,0.0771,98187.0,98186.0,0.00168023]
[1736040722633,0.6653872,98187.0,98186.0,0.00168023]
[1736040722836,0.80223076,98187.0,98186.0,0.00168023]
[1736040723036,0.80223076,98187.0,98186.0,0.00068023]
[1736040723442,1.00592276,98187.0,98186.0,0.00168023]
[1736040723617,1.38832014,98187.0,98186.0,0.00168023]
[1736040724073,1.38832014,98187.0,98186.0,0.00068023]
[1736040724286,0.54230697,98178.0,98165.0,0.0001708]
[1736040724485,0.54230697,98178.0,98165.0,0.02057242]
[1736040724486,0.08,98176.0,98165.0,0.02057242]
[1736040724635,0.20373,98169.0,98165.0,0.0001708]
[1736040724836,0.54230697,98167.0,98165.0,0.0001708]
[1736040725454,0.54243243,98167.0,98165.0,0.0001708]
[1736040726767,0.63362086,98167.0,98165.0,0.0001708]
[1736040727122,0.63362086,98167.0,98165.0,0.0011708]
[1736040727549,0.54243243,98167.0,98165.0,0.0001708]
[1736040727926,0.54243243,98167.0,98165.0,0.0011708]
[1736040728538,0.54230697,98166.0,98165.0,0.0011708]
[1736040729823,0.54230697,98166.0,98165.0,0.0001708]
[1736040730030,0.54230697,98166.0,98165.0,0.0011708]
[1736040731511,0.54230697,98166.0,98165.0,0.01812204]
[1736040731683,0.54330697,98166.0,98165.0,0.01812204]
[1736040732227,0.54430697,98166.0,98165.0,0.01812204]
[1736040732676,0.54330697,98166.0,98165.0,0.12210836]
[1736040732944,0.54230697,98166.0,98165.0,0.12210836]
[1736040733311,0.54230697,98166.0,98165.0,0.12310836]
[1736040737222,0.54230697,98166.0,98165.0,0.01912204]
[1736040737601,0.54230697,98166.0,98165.0,0.0011708]
[1736040744069,0.54230697,98166.0,98165.0,0.00090096]
[1736040750521,0.54230697,98166.0,98165.0,0.10488728]
[1736040750957,0.54230697,98166.0,98165.0,0.12283205]
[1736040753492,0.54230697,98166.0,98165.0,0.12300305]
[1736040756880,0.54230697,98166.0,98165.0,0.14600305]
[1736040757079,0.00012546,98167.0,98166.0,0.376736]
[1736040757303,0.00012546,98167.0,98166.0,0.55882232]
[1736040757627,0.00012546,98167.0,98166.0,0.60793304]
[1736040758190,0.00012546,98167.0,98166.0,0.60993304]
[1736040758626,0.00012546,98167.0,98166.0,0.61693304]
[1736040759489,0.00112546,98167.0,98166.0,0.61893304]
[1736040761491,0.00112546,98167.0,98166.0,0.54083304]
[1736040762479,0.00112546,98167.0,98166.0,0.509664]
[1736040762674,0.00112546,98167.0,98166.0,0.54082262]
[1736040764656,0.00112546,98167.0,98166.0,0.61832262]
[1736040765229,0.00121086,98167.0,98166.0,0.61832262]
[1736040765824,0.00021086,98167.0,98166.0,0.61432262]
[1736040766022,0.00021086,98167.0,98166.0,0.61632262]
[1736040766225,0.00121086,98167.0,98166.0,0.62032262]
[1736040766416,0.00021086,98167.0,98166.0,0.61632262]
[1736040766625,0.00021086,98167.0,98166.0,0.61432262]
[1736040766772,0.00121086,98167.0,98166.0,0.62232262]
[1736040767362,0.00121086,98167.0,98166.0,0.61832262]
[1736040767588,0.00121086,98167.0,98166.0,0.62032262]
[1736040768350,0.00121086,98167.0,98166.0,0.61932262]
[1736040769040,0.00121086,98167.0,98166.0,0.61732262]
[1736040769192,0.00121086,98167.0,98166.0,0.62132262]
[1736040769736,0.00121086,98167.0,98166.0,0.54382262]
[1736040774955,0.00121086,98167.0,98166.0,0.53682262]
[1736040775158,0.00121086,98167.0,98166.0,0.54382262]
[1736040776818,0.00121086,98167.0,98166.0,0.53982262]
[1736040777014,0.00021086,98167.0,98166.0,0.53582262]
[1736040777446,0.00121086,98167.0,98166.0,0.54382262]
[1736040778344,0.00121086,98167.0,98166.0,0.54682262]
[1736040778830,0.00121086,98167.0,98166.0,0.54382262]
[1736040779265,0.00021086,98167.0,98166.0,0.53982262]
[1736040779475,0.00121086,98167.0,98166.0,0.54782262]
[1736040783487,0.00121086,98167.0,98166.0,0.65502262]
[1736040786143,0.00121086,98167.0,98166.0,0.65102262]
[1736040786349,0.00021086,98167.0,98166.0,0.64302262]
[1736040786501,0.00021086,98167.0,98166.0,0.64802262]
[1736040787462,0.00021086,98167.0,98166.0,0.64302262]
[1736040787667,0.00021086,98167.0,98166.0,0.64502262]
[1736040787819,0.00021086,98167.0,98166.0,0.65102262]
[1736040788021,0.00021086,98167.0,98166.0,0.64902262]
[1736040788225,0.00021086,98167.0,98166.0,0.65202262]
[1736040788865,0.00021086,98167.0,98166.0,0.64319342]
[1736040788996,0.00021086,98167.0,98166.0,0.64519342]
[1736040789200,0.00121086,98167.0,98166.0,0.65219342]
[1736040789405,0.00121086,98167.0,98166.0,1.15219342]
[1736040789612,0.00021086,98167.0,98166.0,1.14519342]
[1736040789878,0.00021086,98167.0,98166.0,1.15019342]
[1736040790075,0.00021086,98167.0,98166.0,1.14519342]
[1736040790631,0.00021086,98167.0,98166.0,1.14119342]
[1736040790843,0.00021086,98167.0,98166.0,1.15019342]
[1736040791984,0.00021086,98167.0,98166.0,1.12119342]
[1736040792185,0.00021086,98167.0,98166.0,1.12819342]
[1736040794432,8.55e-05,98186.0,98178.0,0.1072]
[1736040794642,8.55e-05,98186.0,98179.0,0.28514494]
[1736040794857,8.55e-05,98186.0,98182.0,0.203701]
[1736040795055,8.55e-05,98186.0,98184.0,0.203699]
[1736040795402,8.55e-05,98186.0,98185.0,0.15304224]
[1736040796793,8.55e-05,98186.0,98185.0,0.15904224]
[1736040796794,0.0010855,98186.0,98185.0,0.15904224]
[1736040796992,0.0010855,98186.0,98185.0,0.15304224]
[1736040797407,0.0010855,98186.0,98185.0,0.15604224]
[1736040798196,0.0010855,98186.0,98185.0,0.16204224]
[1736040798858,0.0010855,98186.0,98185.0,0.1821815]
[1736040799316,0.0010855,98186.0,98185.0,0.20022423]
[1736040799903,0.0010855,98186.0,98185.0,0.19722423]
[1736040800127,8.55e-05,98186.0,98185.0,0.19122423]
[1736040800337,8.55e-05,98186.0,98185.0,0.19322423]
[1736040800746,8.55e-05,98186.0,98185.0,0.19122423]
[1736040801223,8.55e-05,98186.0,98185.0,0.19422423]
[1736040801859,8.55e-05,98186.0,98185.0,0.20022423]
[1736040802161,0.0811855,98186.0,98185.0,0.20122423]
[1736040802523,0.0821855,98186.0,98185.0,0.20822423]
[1736040802728,0.0821855,98186.0,98185.0,0.20122423]
[1736040802935,0.0821855,98186.0,98185.0,0.20822423]
[1736040803134,0.0821855,98186.0,98185.0,0.20522423]
[1736040803336,0.0811855,98186.0,98185.0,0.20022423]
[1736040803546,0.0811855,98186.0,98185.0,0.20622423]
[1736040803862,0.0811855,98186.0,98185.0,0.20422423]
[1736040804261,0.0811855,98186.0,98185.0,0.20722423]
[1736040805591,0.0811855,98186.0,98185.0,0.19822423]
[1736040805969,0.0821855,98186.0,98185.0,0.20722423]
[1736040806215,0.0821855,98186.0,98185.0,0.20022423]
[1736040806565,0.0821855,98186.0,98185.0,0.20622423]
[1736040806960,0.0821855,98186.0,98185.0,0.20422423]
[1736040807402,0.0811855,98186.0,98185.0,0.20122423]
[1736040807607,0.0821855,98186.0,98185.0,0.20822423]
[1736040808890,0.0821855,98186.0,98185.0,0.19822423]
[1736040809099,0.0811855,98186.0,98185.0,0.20022423]
[1736040809296,0.0811855,98186.0,98185.0,0.20622423]
[1736040809499,0.0811855,98186.0,98185.0,0.20022423]
[1736040809769,0.0811855,98186.0,98185.0,0.19822423]
[1736040809960,0.0811855,98186.0,98185.0,0.20022423]
[1736040810088,0.0811855,98186.0,98185.0,0.20622423]
[1736040810491,0.0811855,98186.0,98185.0,0.19822423]
[1736040810914,0.0811855,98186.0,98185.0,0.20622423]
[1736040811339,8.55e-05,98186.0,98185.0,0.35622423]
[1736040812158,8.55e-05,98186.0,98185.0,0.35422423]
[1736040812377,8.55e-05,98186.0,98185.0,0.35622423]
[1736040812786,8.55e-05,98186.0,98185.0,0.35022423]
[1736040813016,8.55e-05,98186.0,98185.0,0.34822423]
[1736040813217,8.55e-05,98186.0,98185.0,0.35422423]
[1736040813375,8.55e-05,98186.0,98185.0,0.34922423]
[1736040813585,8.55e-05,98186.0,98185.0,0.45642423]
[1736040813778,8.55e-05,98186.0,98185.0,0.45942423]
[1736040814114,0.54187247,98189.0,98185.0,0.45642423]
[1736040814396,0.54187247,98189.0,98187.0,0.15]
[1736040814540,0.54187247,98189.0,98188.0,0.28514494]
[1736040814744,0.54187247,98189.0,98188.0,0.30303098]
[1736040815406,0.0757,98192.0,98191.0,0.15]
[1736040815651,0.0757,98192.0,98191.0,0.28514494]
[1736040815821,0.0757,98192.0,98191.0,0.30303081]
[1736040816696,0.0757,98192.0,98191.0,0.30903081]
[1736040817163,0.0757,98192.0,98191.0,0.31103081]
[1736040817364,0.0757,98192.0,98191.0,0.30503081]
[1736040817788,0.0757,98192.0,98191.0,0.30803081]
[1736040818234,0.54187247,98196.0,98193.0,0.15]
[1736040818457,0.54187247,98196.0,98195.0,0.15]
[1736040818672,0.54187247,98196.0,98195.0,0.28514494]
[1736040818917,0.06638157,98197.0,98196.0,0.353674]
[1736040819050,8.55e-05,98198.0,98197.0,0.15]
[1736040819267,8.55e-05,98198.0,98197.0,0.25398632]
[1736040819463,8.55e-05,98198.0,98197.0,0.27185576]
[1736040820064,0.00019134,98198.0,98197.0,0.27185576]
[1736040820275,0.00019134,98198.0,98197.0,0.30301438]
[1736040820471,0.00019134,98198.0,98197.0,0.30901438]
[1736040820675,0.00019134,98198.0,98197.0,0.30501438]
[1736040822172,0.00019134,98198.0,98197.0,0.31001438]
[1736040823599,0.00019134,98198.0,98197.0,0.41521438]
[1736040824009,0.00019134,98198.0,98197.0,0.41021438]
[1736040824212,0.00019134,98198.0,98197.0,0.41121438]
[1736040825334,0.0757,98205.0,98204.0,0.203657]
[1736040825463,0.0757,98205.0,98204.0,0.30764332]
[1736040825664,0.0757,98205.0,98204.0,0.32549605]
[1736040826560,0.0757,98205.0,98204.0,0.32749605]
[1736040826760,0.0757,98205.0,98204.0,0.32549605]
[1736040827178,0.0757,98205.0,98204.0,0.32649605]
[1736040828546,0.0757,98205.0,98204.0,0.32549605]